bitfinex/quotes_BTCUSD_20240918
["timestamp","ask_amount","ask_price","bid_price","bid_amount"]
[1726665975409,0.49568367,60127.0,60121.0,0.0798]
[1726665975633,0.16632,60125.0,60121.0,0.0798]
[1726665975877,0.16305367,60127.0,60124.0,0.16632]
[1726665976115,0.16632,60125.0,60124.0,0.0798]
[1726665976353,0.49568367,60127.0,60124.0,0.0798]
[1726665976590,0.166318,60126.0,60124.0,0.0798]
[1726665977070,0.16305367,60127.0,60124.0,0.0798]
[1726665977315,0.119921,60132.0,60124.0,0.412444]
[1726665977316,0.332608,60131.0,60124.0,0.412444]
[1726665977544,0.167122,60132.0,60128.0,0.16631]
[1726665977769,0.167122,60132.0,60128.0,0.24611]
[1726665977770,0.166304,60131.0,60128.0,0.24611]
[1726665978236,0.166304,60131.0,60128.0,0.0798]
[1726665978475,0.000821,60132.0,60131.0,0.49891]
[1726665978711,0.000821,60132.0,60131.0,0.98471527]
[1726665978949,0.000821,60132.0,60131.0,0.65210827]
[1726665980319,0.002821,60132.0,60131.0,0.65210827]
[1726665980562,0.002821,60132.0,60131.0,0.49891]
[1726665980784,0.002821,60132.0,60131.0,0.57871]
[1726665981214,0.002821,60132.0,60131.0,0.246103]
[1726665981654,0.002821,60132.0,60131.0,0.57871]
[1726665981909,0.002821,60132.0,60131.0,0.911317]
[1726665982136,0.002821,60132.0,60131.0,1.56079319]
[1726665982362,0.002821,60132.0,60131.0,1.243924]
[1726665982585,0.002821,60132.0,60131.0,1.56061338]
[1726665982806,0.002821,60132.0,60131.0,1.56050261]
[1726665983486,0.000821,60132.0,60131.0,1.243924]
[1726665983703,0.001821,60132.0,60131.0,1.30156825]
[1726665985239,0.000821,60132.0,60131.0,1.29356825]
[1726665985460,0.000821,60132.0,60131.0,1.243924]
[1726665985702,0.001821,60132.0,60131.0,1.254924]
[1726665985913,0.000821,60132.0,60131.0,1.243924]
[1726665986801,0.001821,60132.0,60131.0,1.252924]
[1726665987510,0.001821,60132.0,60131.0,0.920317]
[1726665987758,0.001821,60132.0,60131.0,0.0888]
[1726665987995,0.001821,60132.0,60131.0,0.58771]
[1726665988234,0.001821,60132.0,60131.0,0.0888]
[1726665988748,0.001821,60132.0,60131.0,0.58771]
[1726665989001,0.001821,60132.0,60131.0,1.07351527]
[1726665989474,0.001821,60132.0,60131.0,1.40612227]
[1726665991731,0.001821,60132.0,60131.0,1.252924]
[1726665997869,0.001821,60132.0,60131.0,1.40612227]
[1726665999643,0.001821,60132.0,60131.0,0.920317]
[1726665999877,0.001821,60132.0,60131.0,0.58771]
[1726666001412,0.001821,60132.0,60131.0,0.920317]
[1726666002067,0.001821,60132.0,60131.0,0.58771]
[1726666002732,0.001821,60132.0,60131.0,0.920317]
[1726666004713,0.001821,60132.0,60131.0,0.58771]
[1726666006547,0.001821,60132.0,60131.0,0.920317]
[1726666008730,0.001821,60132.0,60131.0,0.58771]
[1726666008954,0.001821,60132.0,60131.0,0.255103]
[1726666009186,0.001821,60132.0,60131.0,0.0888]
[1726666009419,0.66377567,60132.0,60131.0,0.0888]
[1726666009659,0.99637667,60132.0,60131.0,0.0888]
[1726666010118,1.32897767,60132.0,60131.0,0.0888]
[1726666010424,1.35197767,60132.0,60131.0,0.0888]
[1726666010668,0.166331,60121.0,60119.0,0.001642]
[1726666010899,0.166327,60123.0,60119.0,0.167977]
[1726666011124,0.166328,60122.0,60119.0,0.167977]
[1726666011350,0.166329,60122.0,60119.0,0.001642]
[1726666011843,0.166325,60123.0,60119.0,0.167977]
[1726666012323,0.332654,60123.0,60119.0,0.081442]
[1726666012551,0.16633,60122.0,60119.0,0.081442]
[1726666013044,0.166333,60120.0,60119.0,0.081442]
[1726666013271,0.99472067,60120.0,60119.0,0.081442]
[1726666013497,0.66205367,60120.0,60119.0,0.081442]
[1726666013950,0.99472067,60120.0,60119.0,0.081442]
[1726666014190,0.32938667,60120.0,60119.0,0.081442]
[1726666014415,0.332633,60127.0,60119.0,0.417114]
[1726666014645,0.166323,60124.0,60120.0,0.166333]
[1726666014864,0.49568667,60127.0,60120.0,0.166333]
[1726666014865,0.49568667,60127.0,60121.0,0.166329]
[1726666015088,0.166322,60125.0,60122.0,0.166328]
[1726666015311,0.166324,60124.0,60122.0,0.0798]
[1726666016000,0.166325,60123.0,60122.0,0.0798]
[1726666016438,0.498976,60123.0,60122.0,0.0798]
[1726666017859,0.503976,60123.0,60122.0,0.0798]
[1726666018116,0.498976,60123.0,60122.0,0.0798]
[1726666018379,0.502976,60123.0,60122.0,0.0798]
[1726666018630,0.66602967,60123.0,60122.0,0.0798]
[1726666019392,0.33337867,60123.0,60122.0,0.0798]
[1726666019614,0.66602967,60123.0,60122.0,0.0798]
[1726666020572,0.99868067,60123.0,60122.0,0.0798]
[1726666021682,0.66602967,60123.0,60122.0,0.0798]
[1726666022171,0.004,60123.0,60122.0,0.246128]
[1726666022394,0.004,60123.0,60122.0,0.0798]
[1726666024000,0.16632,60125.0,60122.0,0.246128]
[1726666024228,0.001,60123.0,60122.0,0.0798]
[1726666024453,0.333651,60123.0,60122.0,0.0798]
[1726666024691,1.44423167,60123.0,60122.0,0.0798]
[1726666025153,1.44323167,60123.0,60122.0,0.0798]
[1726666025634,1.11058067,60123.0,60122.0,0.0798]
[1726666026563,0.498976,60123.0,60122.0,0.0798]
[1726666026826,0.167146,60123.0,60122.0,0.0798]
[1726666027359,0.499797,60123.0,60122.0,0.0798]
[1726666027582,0.500797,60123.0,60122.0,0.0798]
[1726666030547,0.66385067,60123.0,60122.0,0.0798]
[1726666030772,0.001821,60123.0,60122.0,0.0798]
[1726666031021,0.168146,60123.0,60122.0,0.0798]
[1726666031484,0.99650167,60123.0,60122.0,0.0798]
[1726666031703,1.32915267,60123.0,60122.0,0.0798]
[1726666032430,1.35215267,60123.0,60122.0,0.0798]
[1726666034462,1.45145267,60123.0,60122.0,0.0798]
[1726666035439,1.45045267,60123.0,60122.0,0.0798]
[1726666035890,1.45045267,60123.0,60122.0,0.0808]
[1726666035891,1.45545267,60123.0,60122.0,0.0808]
[1726666036896,1.12280167,60123.0,60122.0,0.0808]
[1726666037127,0.66785067,60123.0,60122.0,0.0808]
[1726666037387,1.00050167,60123.0,60122.0,0.0808]
[1726666037856,1.16830167,60123.0,60122.0,0.0808]
[1726666039503,1.52395267,60123.0,60122.0,0.0808]
[1726666040482,0.85865067,60123.0,60122.0,0.0808]
[1726666040974,1.52395267,60123.0,60122.0,0.0808]
[1726666041196,1.19130167,60123.0,60122.0,0.0808]
[1726666041339,1.52395267,60123.0,60122.0,0.0808]
[1726666041566,1.19130167,60123.0,60122.0,0.0808]
[1726666041763,1.52395267,60123.0,60122.0,0.0808]
[1726666045432,1.19130167,60123.0,60122.0,0.0808]
[1726666045878,1.52395267,60123.0,60122.0,0.0808]
[1726666046601,1.55004806,60123.0,60122.0,0.0808]
[1726666047291,1.55004806,60123.0,60122.0,0.001]
[1726666047746,1.52395267,60123.0,60122.0,0.001]
[1726666047963,1.52595267,60123.0,60122.0,0.001]
[1726666048403,1.88860367,60123.0,60122.0,0.001]
[1726666048857,1.497001,60120.0,60119.0,0.001642]
[1726666049079,1.93595294,60120.0,60119.0,0.001642]
[1726666049553,2.03795294,60120.0,60119.0,0.001642]
[1726666049782,2.06795294,60120.0,60119.0,0.001642]
[1726666050248,2.23103852,60120.0,60119.0,0.001642]
[1726666050701,2.24303852,60120.0,60119.0,0.001642]
[1726666051620,2.24503852,60120.0,60119.0,0.001642]
[1726666052087,2.10805281,60120.0,60119.0,0.001642]
[1726666052310,2.09405281,60120.0,60119.0,0.001642]
[1726666052538,2.10805281,60120.0,60119.0,0.001642]
[1726666053213,2.08195294,60120.0,60119.0,0.001642]
[1726666056211,2.10805271,60120.0,60119.0,0.001642]
[1726666056648,2.27113829,60120.0,60119.0,0.001642]
[1726666058437,2.07605271,60120.0,60119.0,0.001642]
[1726666060493,2.44071971,60120.0,60119.0,0.001642]
[1726666060697,2.49058421,60120.0,60119.0,0.001642]
[1726666061395,2.44071971,60120.0,60119.0,0.001642]
[1726666062331,2.44154071,60120.0,60119.0,0.001642]
[1726666062554,2.60462629,60120.0,60119.0,0.001642]
[1726666062992,2.65449079,60120.0,60119.0,0.001642]
[1726666063207,2.60462629,60120.0,60119.0,0.001642]
[1726666063423,2.59062629,60120.0,60119.0,0.001642]
[1726666063640,2.60462629,60120.0,60119.0,0.001642]
[1726666063854,2.65246597,60120.0,60119.0,0.001642]
[1726666064087,2.65446597,60120.0,60119.0,0.001642]
[1726666064303,2.65446606,60120.0,60119.0,0.001642]
[1726666064527,2.65446659,60120.0,60119.0,0.001642]
[1726666064748,2.66462629,60120.0,60119.0,0.001642]
[1726666064967,2.057822,60115.0,60114.0,0.001642]
[1726666065194,2.53337394,60115.0,60114.0,0.001642]
[1726666065460,1.196569,60108.0,60107.0,0.001642]
[1726666065898,2.39728894,60108.0,60107.0,0.001642]
[1726666065902,2.44712761,60108.0,60107.0,0.001642]
[1726666066141,2.64127452,60108.0,60107.0,0.001642]
[1726666066654,2.71600563,60108.0,60107.0,0.001642]
[1726666066907,2.77600617,60108.0,60107.0,0.001642]
[1726666067162,2.77600646,60108.0,60107.0,0.001642]
[1726666067406,2.70127452,60108.0,60107.0,0.001642]
[1726666067666,2.75107709,60108.0,60107.0,0.001642]
[1726666067934,2.70127452,60108.0,60107.0,0.001642]
[1726666068197,2.71527452,60108.0,60107.0,0.001642]
[1726666068443,2.81488384,60108.0,60107.0,0.001642]
[1726666068672,2.84099075,60108.0,60107.0,0.001642]
[1726666069406,2.8260189,60108.0,60107.0,0.001642]
[1726666069635,2.8120189,60108.0,60107.0,0.001642]
[1726666070084,2.8260189,60108.0,60107.0,0.001642]
[1726666070315,2.8120189,60108.0,60107.0,0.001642]
[1726666070765,2.8260189,60108.0,60107.0,0.001642]
[1726666070999,2.4663885,60108.0,60107.0,0.001642]
[1726666071227,2.35862458,60108.0,60107.0,0.001642]
[1726666071454,2.41862458,60108.0,60107.0,0.001642]
[1726666072597,2.41662458,60108.0,60107.0,0.001642]
[1726666073766,2.75135858,60108.0,60107.0,0.001642]
[1726666073995,2.41862458,60108.0,60107.0,0.001642]
[1726666074217,2.39251767,60108.0,60107.0,0.001642]
[1726666074451,2.72525167,60108.0,60107.0,0.001642]
[1726666074695,2.39251767,60108.0,60107.0,0.001642]
[1726666075147,2.72525167,60108.0,60107.0,0.001642]
[1726666075394,2.72525167,60108.0,60101.0,0.001642]
[1726666075395,1.90184927,60102.0,60101.0,0.001642]
[1726666075634,2.06490294,60102.0,60101.0,0.001642]
[1726666076145,2.39766994,60102.0,60101.0,0.001642]
[1726666076377,2.39766994,60102.0,60101.0,0.003322]
[1726666077112,2.06290294,60102.0,60101.0,0.003322]
[1726666077636,2.08901017,60102.0,60101.0,0.003322]
[1726666078102,2.10301017,60102.0,60101.0,0.003322]
[1726666078590,2.25209575,60102.0,60101.0,0.003322]
[1726666078841,2.26609575,60102.0,60101.0,0.003322]
[1726666079826,2.65886275,60102.0,60101.0,0.003322]
[1726666080063,2.66086275,60102.0,60101.0,0.003322]
[1726666081073,2.66086275,60102.0,60096.0,0.0039031]
[1726666081074,0.032,60097.0,60096.0,0.0039031]
[1726666081302,1.34125027,60083.0,60082.0,0.001642]
[1726666081532,1.83717594,60083.0,60082.0,0.001642]
[1726666082006,1.86717594,60083.0,60082.0,0.001642]
[1726666082239,1.96717594,60083.0,60082.0,0.001642]
[1726666082697,1.96917594,60083.0,60082.0,0.001642]
[1726666082948,1.96917594,60083.0,60082.0,0.004962]
[1726666083436,2.46513352,60083.0,60082.0,0.004962]
[1726666083663,2.47523033,60083.0,60082.0,0.004962]
[1726666084831,2.72053033,60083.0,60082.0,0.004962]
[1726666085051,1.922922,60079.0,60077.0,0.001642]
[1726666085285,2.52525952,60079.0,60077.0,0.001642]
[1726666086188,2.53925952,60079.0,60077.0,0.001642]
[1726666086652,2.20636452,60079.0,60077.0,0.001642]
[1726666087474,2.23248376,60079.0,60077.0,0.001642]
[1726666090344,2.06939818,60079.0,60077.0,0.001642]
[1726666091858,1.95439818,60079.0,60077.0,0.001642]
[1726666092340,1.92827894,60079.0,60077.0,0.001642]
[1726666093108,1.95127894,60079.0,60077.0,0.001642]
[1726666094641,1.93727894,60079.0,60077.0,0.001642]
[1726666095125,1.95127894,60079.0,60077.0,0.001642]
[1726666096105,2.11436452,60079.0,60077.0,0.001642]
[1726666099569,2.44725952,60079.0,60077.0,0.001642]
[1726666099853,1.167265,60072.0,60071.0,0.001642]
[1726666100089,2.14918467,60072.0,60071.0,0.001642]
[1726666100374,2.46546852,60072.0,60071.0,0.001642]
[1726666100856,2.46346852,60072.0,60071.0,0.001642]
[1726666101095,2.46546852,60072.0,60071.0,0.001642]
[1726666101819,2.46346852,60072.0,60071.0,0.001642]
[1726666102321,2.47746852,60072.0,60071.0,0.001642]
[1726666102549,2.48729681,60072.0,60071.0,0.001642]
[1726666103048,2.15436381,60072.0,60071.0,0.001642]
[1726666103551,1.99127823,60072.0,60071.0,0.001642]
[1726666104063,1.96127823,60072.0,60071.0,0.001642]
[1726666104805,1.99127823,60072.0,60071.0,0.001642]
[1726666105999,1.96127823,60072.0,60071.0,0.001642]
[1726666106465,1.98739824,60072.0,60071.0,0.001642]
[1726666109616,1.96127823,60072.0,60071.0,0.001642]
[1726666113358,1.99127823,60072.0,60071.0,0.001642]
[1726666114033,1.99327823,60072.0,60071.0,0.001642]
[1726666114473,2.08367823,60072.0,60071.0,0.001642]
[1726666116284,2.08567823,60072.0,60071.0,0.001642]
[1726666116509,2.27288491,60072.0,60071.0,0.001642]
[1726666117187,2.24676381,60072.0,60071.0,0.001642]
[1726666122802,2.24876381,60072.0,60071.0,0.001642]
[1726666123290,2.3235327,60072.0,60071.0,0.001642]
[1726666123899,2.6564657,60072.0,60071.0,0.001642]
[1726666124131,2.58169681,60072.0,60071.0,0.001642]
[1726666124337,2.34645566,60072.0,60071.0,0.001642]
[1726666125310,2.70431162,60072.0,60071.0,0.001642]
[1726666125591,2.70631162,60072.0,60071.0,0.001642]
[1726666125796,1.80462127,60063.0,60062.0,0.00164]
[1726666126052,1.96767494,60063.0,60062.0,0.00164]
[1726666126278,2.40056085,60063.0,60062.0,0.00164]
[1726666126503,2.39615794,60063.0,60062.0,0.00164]
[1726666126731,1.6305,60060.0,60059.0,0.00164]
[1726666126990,2.1044964,60060.0,60059.0,0.00164]
[1726666127216,2.31063925,60060.0,60059.0,0.00164]
[1726666127439,2.31263925,60060.0,60059.0,0.00164]
[1726666127662,2.31263925,60060.0,60039.0,0.24949062]
[1726666127663,1.498824,60047.0,60039.0,0.24949062]
[1726666127915,1.93807594,60047.0,60039.0,0.24949062]
[1726666128140,1.93807594,60047.0,60035.0,0.24949062]
[1726666128362,1.60500394,60047.0,60035.0,0.24949062]
[1726666128590,1.60500394,60047.0,60034.0,0.0937]
[1726666129046,1.63113373,60047.0,60034.0,0.0937]
[1726666129288,1.96420573,60047.0,60034.0,0.0937]
[1726666129944,1.97404894,60047.0,60034.0,0.0937]
[1726666131131,1.98804894,60047.0,60034.0,0.0937]
[1726666132075,1.65497694,60047.0,60032.0,0.24949062]
[1726666132255,1.64513373,60047.0,60043.0,0.0987031]
[1726666133422,1.61900394,60047.0,60043.0,0.0987031]
[1726666133871,1.46580567,60047.0,60043.0,0.0987031]
[1726666136540,1.49193538,60047.0,60043.0,0.0039031]
[1726666137861,1.82500738,60047.0,60043.0,0.0039031]
[1726666138311,1.85500738,60047.0,60043.0,0.0039031]
[1726666138589,2.01809296,60047.0,60043.0,0.0039031]
[1726666138815,1.99396325,60047.0,60043.0,0.0039031]
[1726666139041,1.99196325,60047.0,60043.0,0.0039031]
[1726666140829,2.32703525,60047.0,60043.0,0.0039031]
[1726666141902,2.35316657,60047.0,60043.0,0.0039031]
[1726666142407,2.35116657,60047.0,60043.0,0.0039031]
[1726666142854,2.35316657,60047.0,60043.0,0.0039031]
[1726666143053,2.33916657,60047.0,60043.0,0.0039031]
[1726666143279,2.31303525,60047.0,60043.0,0.0039031]
[1726666143501,2.32703525,60047.0,60043.0,0.0039031]
[1726666143720,2.31303525,60047.0,60043.0,0.0039031]
[1726666143931,2.32703525,60047.0,60043.0,0.0039031]
[1726666145034,2.32503525,60047.0,60043.0,0.0039031]
[1726666145465,1.99196325,60047.0,60043.0,0.0039031]
[1726666146575,2.01809542,60047.0,60043.0,0.0039031]
[1726666146785,1.98809542,60047.0,60043.0,0.0039031]
[1726666147017,1.82500984,60047.0,60043.0,0.0039031]
[1726666147266,1.46893784,60047.0,60043.0,0.0039031]
[1726666147510,1.44280567,60047.0,60043.0,0.0039031]
[1726666147720,1.10973367,60047.0,60043.0,0.0039031]
[1726666148192,1.44280567,60047.0,60043.0,0.0039031]
[1726666149324,1.46580567,60047.0,60043.0,0.0039031]
[1726666149788,1.45180567,60047.0,60043.0,0.0039031]
[1726666149938,1.11873367,60047.0,60043.0,0.0039031]
[1726666150345,1.45180567,60047.0,60043.0,0.0039031]
[1726666150550,1.13273367,60047.0,60043.0,0.0039031]
[1726666151119,1.46580567,60047.0,60043.0,0.0039031]
[1726666151850,1.49193641,60047.0,60043.0,0.0039031]
[1726666152557,1.65151037,60047.0,60043.0,0.0039031]
[1726666153026,1.49193641,60047.0,60043.0,0.0039031]
[1726666153277,1.46580567,60047.0,60043.0,0.0039031]
[1726666154243,1.49580567,60047.0,60043.0,0.0039031]
[1726666154496,1.82887767,60047.0,60043.0,0.0039031]
[1726666154730,1.83087767,60047.0,60043.0,0.0039031]
[1726666154957,2.32703525,60047.0,60043.0,0.0039031]
[1726666155188,1.99396325,60047.0,60043.0,0.0039031]
[1726666156217,1.99196325,60047.0,60043.0,0.0039031]
[1726666157626,2.0180969,60047.0,60043.0,0.0039031]
[1726666161732,2.3531689,60047.0,60043.0,0.0039031]
[1726666162408,2.3391689,60047.0,60043.0,0.0039031]
[1726666162629,2.3531689,60047.0,60043.0,0.0039031]
[1726666163093,2.3391689,60047.0,60043.0,0.0039031]
[1726666163348,2.3531689,60047.0,60043.0,0.0039031]
[1726666163840,2.3511689,60047.0,60043.0,0.0039031]
[1726666164457,1.36893932,60047.0,60043.0,0.0039031]
[1726666164706,1.34280567,60047.0,60043.0,0.0039031]
[1726666165754,1.67587767,60047.0,60043.0,0.0039031]
[1726666165974,1.45180567,60047.0,60043.0,0.0039031]
[1726666166432,1.46580567,60047.0,60043.0,0.0039031]
[1726666166657,1.45180567,60047.0,60043.0,0.0039031]
[1726666167120,1.46580567,60047.0,60043.0,0.0039031]
[1726666168060,1.49193609,60047.0,60043.0,0.0039031]
[1726666168757,1.46580567,60047.0,60043.0,0.0039031]
[1726666170841,1.5436572,60047.0,60043.0,0.0039031]
[1726666171332,1.8767292,60047.0,60043.0,0.0039031]
[1726666171549,1.5436572,60047.0,60043.0,0.0039031]
[1726666171775,1.8767292,60047.0,60043.0,0.0039031]
[1726666173222,1.92667897,60047.0,60043.0,0.0039031]
[1726666173892,1.8627292,60047.0,60043.0,0.0039031]
[1726666174109,1.93765386,60047.0,60043.0,0.0039031]
[1726666174299,1.95165386,60047.0,60043.0,0.0039031]
[1726666175430,1.8767292,60047.0,60043.0,0.0039031]
[1726666175880,1.95165386,60047.0,60043.0,0.0039031]
[1726666176102,1.8767292,60047.0,60043.0,0.0039031]
[1726666176324,1.95165386,60047.0,60043.0,0.0039031]
[1726666176567,2.00662875,60047.0,60043.0,0.0039031]
[1726666176796,1.9067292,60047.0,60043.0,0.0039031]
[1726666177037,2.2398012,60047.0,60043.0,0.0039031]
[1726666177328,1.6539,60044.0,60043.0,0.0039031]
[1726666177558,2.428144,60044.0,60043.0,0.0039031]
[1726666177787,2.761233,60044.0,60043.0,0.0039031]
[1726666178939,2.69632994,60044.0,60043.0,0.0039031]
[1726666179198,2.047077,60041.0,60038.0,0.001642]
[1726666179433,2.54323567,60041.0,60038.0,0.001642]
[1726666180337,2.54123567,60041.0,60038.0,0.001642]
[1726666181504,2.55523567,60041.0,60038.0,0.001642]
[1726666182238,1.89889471,60041.0,60038.0,0.001642]
[1726666182483,2.02712143,60041.0,60038.0,0.001642]
[1726666182970,2.1596434,60041.0,60038.0,0.001642]
[1726666183209,2.02712143,60041.0,60038.0,0.001642]
[1726666183961,1.95222394,60041.0,60038.0,0.001642]
[1726666184445,2.05209298,60041.0,60038.0,0.001642]
[1726666184683,2.06191856,60041.0,60038.0,0.001642]
[1726666186048,1.96204952,60041.0,60038.0,0.001642]
[1726666186480,2.06190024,60041.0,60038.0,0.001642]
[1726666186695,1.98818461,60041.0,60038.0,0.001642]
[1726666186912,2.08803281,60041.0,60038.0,0.001642]
[1726666187383,1.98818461,60041.0,60038.0,0.001642]
[1726666187591,2.08802926,60041.0,60038.0,0.001642]
[1726666189111,2.25111484,60041.0,60038.0,0.001642]
[1726666189336,2.58421984,60041.0,60038.0,0.001642]
[1726666190702,2.42113426,60041.0,60038.0,0.001642]
[1726666191120,2.26793599,60041.0,60038.0,0.001642]
[1726666191338,2.06305513,60041.0,60038.0,0.001642]
[1726666192221,2.03692004,60041.0,60038.0,0.001642]
[1726666193582,2.02292004,60041.0,60038.0,0.001642]
[1726666193802,1.34292067,60041.0,60038.0,0.094542]
[1726666194056,0.67671067,60041.0,60038.0,0.094542]
[1726666194506,1.00981567,60041.0,60038.0,0.094542]
[1726666194967,1.34292067,60041.0,60038.0,0.094542]
[1726666195182,1.32892067,60041.0,60038.0,0.094542]
[1726666195407,1.36392067,60041.0,60038.0,0.094542]
[1726666197392,1.35192067,60041.0,60038.0,0.094542]
[1726666197853,0.17705367,60041.0,60038.0,0.094542]
[1726666198068,0.32960567,60041.0,60038.0,0.094542]
[1726666198520,0.34360567,60041.0,60038.0,0.094542]
[1726666198739,0.32960567,60041.0,60038.0,0.094542]
[1726666198968,0.33309,60044.0,60038.0,0.001642]
[1726666199194,0.166548,60043.0,60041.0,0.0956]
[1726666199420,0.166547,60043.0,60041.0,0.0956]
[1726666199675,0.166547,60043.0,60041.0,0.1754]
[1726666199880,0.16305367,60044.0,60042.0,0.166549]
[1726666200114,0.16305367,60044.0,60043.0,0.166547]
[1726666200339,0.66268667,60044.0,60043.0,0.0969]
[1726666200623,0.189552,60041.0,60040.0,0.001642]
[1726666200841,0.15319827,60048.0,60040.0,0.098542]
[1726666200842,0.02612957,60048.0,60040.0,0.098542]
[1726666201085,0.33308,60046.0,60040.0,0.098542]
[1726666201308,0.02612957,60048.0,60041.0,0.0969]
[1726666201536,0.02612957,60048.0,60047.0,0.243936]
[1726666201836,0.001644,60055.0,60054.0,0.166516]
[1726666202060,0.001644,60060.0,60059.0,1.08061027]
[1726666202287,0.15319827,60080.0,60059.0,0.427905]
[1726666202522,0.166478,60068.0,60063.0,0.166491]
[1726666202782,0.332974,60065.0,60059.0,0.0929]
[1726666203002,0.4995,60060.0,60059.0,0.0929]
[1726666203233,0.4995,60060.0,60051.0,0.0929]
[1726666203234,0.499566,60052.0,60051.0,0.0929]
[1726666203484,0.16305367,60052.0,60040.0,0.001642]
[1726666203717,0.65285527,60041.0,60040.0,0.001642]
[1726666203953,1.01881567,60041.0,60040.0,0.001642]
[1726666204204,0.16305367,60041.0,60040.0,0.001642]
[1726666204408,0.66271067,60041.0,60040.0,0.001642]
[1726666204851,0.16305367,60041.0,60040.0,0.001642]
[1726666205068,0.16305367,60041.0,60040.0,0.081442]
[1726666205285,0.16705367,60041.0,60040.0,0.175142]
[1726666205506,0.33360567,60041.0,60040.0,0.175142]
[1726666205724,0.66671067,60041.0,60040.0,0.175142]
[1726666205942,0.33360567,60041.0,60040.0,0.175142]
[1726666206190,0.66671067,60041.0,60040.0,0.175142]
[1726666206852,0.33360567,60041.0,60040.0,0.175142]
[1726666207304,0.66671067,60041.0,60040.0,0.175142]
[1726666207738,0.33360567,60041.0,60040.0,0.175142]
[1726666208213,0.99981567,60041.0,60040.0,0.175142]
[1726666208423,0.66671067,60041.0,60040.0,0.175142]
[1726666208659,0.16705367,60041.0,60040.0,0.175142]
[1726666208920,0.004,60041.0,60040.0,1.16111727]
[1726666209388,0.004,60041.0,60040.0,1.007919]
[1726666209622,0.004,60041.0,60040.0,0.341697]
[1726666209840,0.004,60041.0,60040.0,0.674808]
[1726666210068,0.004,60041.0,60040.0,1.007919]
[1726666210292,0.004,60041.0,60040.0,1.49422827]
[1726666210727,0.24983136,60062.0,60052.0,0.0921]
[1726666210949,0.24983136,60062.0,60041.0,0.002]
[1726666210950,0.66621,60041.0,60040.0,0.081442]
[1726666211177,0.99681567,60041.0,60040.0,0.001642]
[1726666211450,0.99581567,60041.0,60040.0,0.001642]
[1726666211671,1.14901394,60041.0,60040.0,0.001642]
[1726666211880,1.48311894,60041.0,60040.0,0.001642]
[1726666212111,1.50511894,60041.0,60040.0,0.001642]
[1726666212539,1.01881567,60041.0,60040.0,0.001642]
[1726666212799,1.35192067,60041.0,60040.0,0.001642]
[1726666214478,1.36092067,60041.0,60040.0,0.002642]
[1726666214725,1.35192067,60041.0,60040.0,0.001642]
[1726666215227,1.36092067,60041.0,60040.0,0.002642]
[1726666216286,1.69402567,60041.0,60040.0,0.002642]
[1726666216998,2.32021625,60041.0,60040.0,0.002642]
[1726666217227,1.82402567,60041.0,60040.0,0.002642]
[1726666217462,1.79402567,60041.0,60040.0,0.002642]
[1726666217721,1.46092067,60041.0,60040.0,0.002642]
[1726666218442,1.45192067,60041.0,60040.0,0.001642]
[1726666218982,1.79902567,60041.0,60040.0,0.001642]
[1726666219215,1.78502567,60041.0,60040.0,0.001642]
[1726666219426,1.79902567,60041.0,60040.0,0.001642]
[1726666219853,1.99211125,60041.0,60040.0,0.001642]
[1726666220359,2.01824582,60041.0,60040.0,0.001642]
[1726666220834,1.8653507,60041.0,60040.0,0.001642]
[1726666221075,1.9482507,60041.0,60040.0,0.001642]
[1726666221327,2.2953557,60041.0,60040.0,0.001642]
[1726666221527,2.2813557,60041.0,60040.0,0.001642]
[1726666221749,0.002,60040.0,60038.0,0.001642]
[1726666221975,1.10916827,60026.0,60025.0,0.0039031]
[1726666222217,1.60540994,60026.0,60025.0,0.0039031]
[1726666222437,1.93859794,60026.0,60025.0,0.0039031]
[1726666222665,1.96473787,60026.0,60025.0,0.0039031]
[1726666222893,2.12782345,60026.0,60025.0,0.0039031]
[1726666223423,1.629472,60021.0,60020.0,0.0031692]
[1726666223599,0.67610627,60011.0,60010.0,0.000821]
[1726666223827,1.50570394,60011.0,60010.0,0.000821]
[1726666224761,1.35250567,60011.0,60010.0,0.000821]
[1726666224974,1.01923367,60011.0,60010.0,0.000821]
[1726666225630,1.03323367,60011.0,60010.0,0.000821]
[1726666225861,1.01923367,60011.0,60010.0,0.000821]
[1726666226082,1.35250567,60011.0,60010.0,0.000821]
[1726666226303,1.36550567,60011.0,60010.0,0.000821]
[1726666226529,1.39165008,60011.0,60010.0,0.000821]
[1726666226965,1.05837808,60011.0,60010.0,0.000821]
[1726666227624,1.54613291,60011.0,60010.0,0.000821]
[1726666227840,1.39165008,60011.0,60010.0,0.000821]
[1726666228300,1.05837808,60011.0,60010.0,0.000821]
[1726666228589,0.16305367,60011.0,60010.0,0.000821]
[1726666228821,0.16305367,60011.0,60010.0,0.33743066]
[1726666228822,0.014,60011.0,60010.0,0.33743066]
[1726666229036,0.014,60011.0,60010.0,0.583736]
[1726666229251,0.166625,60015.0,60011.0,0.166636]
[1726666229470,0.166628,60014.0,60011.0,0.02184]
[1726666229684,0.166627,60014.0,60011.0,0.02184]
[1726666229897,0.16305367,60015.0,60011.0,0.02184]
[1726666230111,0.166628,60014.0,60011.0,0.02184]
[1726666230333,0.499899,60012.0,60011.0,0.02184]
[1726666230575,1.17241694,60012.0,60011.0,0.02184]
[1726666230782,0.166636,60011.0,60010.0,0.000821]
[1726666230996,0.66296167,60011.0,60010.0,0.000821]
[1726666231222,0.32968967,60011.0,60010.0,0.000821]
[1726666231454,0.16305367,60011.0,60010.0,0.000821]
[1726666231700,0.333204,60024.0,60013.0,0.333258]
[1726666231701,0.333218,60021.0,60013.0,0.333258]
[1726666231950,0.333218,60021.0,60011.0,0.166635]
[1726666231951,0.166625,60015.0,60011.0,0.166635]
[1726666232174,0.333228,60019.0,60010.0,0.000821]
[1726666232431,0.166636,60011.0,60010.0,0.000821]
[1726666232650,0.002,60014.0,60010.0,0.000821]
[1726666232873,0.16663,60013.0,60010.0,0.000821]
[1726666233091,0.33168167,60014.0,60010.0,0.167458]
[1726666233527,0.002,60014.0,60013.0,0.16663]
[1726666233769,0.002,60014.0,60012.0,0.166631]
[1726666233996,0.36314,60035.0,60010.0,0.000821]
[1726666233997,0.333227,60020.0,60010.0,0.000821]
[1726666234214,0.333238,60017.0,60010.0,0.167459]